[Event "Titled Tuesday Blitz April 11 Late 2023"]
[White "Coenen, Michael"]
[Black "Thomas, Anysia"]
[WhiteFideId "4697367"]
[BlackFideId "670472"]
[WhiteElo "2328"]
[BlackElo "2091"]
[Result "1/2-1/2"]
[Round "01"]
[TimeControl "180+2"]
[Date "2023.04.11"]
[WhiteClock "0:00:32"]
[BlackClock "0:00:19"]

1. Nf3 {[%clk 0:03:00]}  g6 {[%clk 0:02:59]} 2. g3 {[%clk 0:03:00]}  Bg7 {[%clk 0:02:59]} 3. Bg2 {[%clk 0:03:01]}  c5 {[%clk 0:02:59]} 4. O-O {[%clk 0:03:01]}  Nc6 {[%clk 0:03:00]} 5. c3 {[%clk 0:03:01]}  d5 {[%clk 0:02:58]} 6. d4 {[%clk 0:03:01]}  cxd4 {[%clk 0:02:57]} 7. Nxd4 {[%clk 0:03:02]}  Nf6 {[%clk 0:02:56]} 8. Nb3 {[%clk 0:03:01]}  O-O {[%clk 0:02:56]} 9. Bg5 {[%clk 0:03:01]}  e6 {[%clk 0:02:54]} 10. N1d2 {[%clk 0:02:59]}  b6 {[%clk 0:02:54]} 11. e4 {[%clk 0:02:59]}  h6 {[%clk 0:02:46]} 12. Bxf6 {[%clk 0:02:57]}  Bxf6 {[%clk 0:02:45]} 13. exd5 {[%clk 0:02:57]}  exd5 {[%clk 0:02:45]} 14. Nf3 {[%clk 0:02:55]}  Bb7 {[%clk 0:02:43]} 15. Qd2 {[%clk 0:02:54]}  Bg7 {[%clk 0:02:40]} 16. Rad1 {[%clk 0:02:52]}  Ne7 {[%clk 0:02:38]} 17. Rfe1 {[%clk 0:02:51]}  Qc7 {[%clk 0:02:37]} 18. Nfd4 {[%clk 0:02:48]}  a6 {[%clk 0:02:34]} 19. Nc2 {[%clk 0:02:31]}  Rfe8 {[%clk 0:02:32]} 20. Nbd4 {[%clk 0:02:09]}  Rad8 {[%clk 0:02:31]} 21. Ne2 {[%clk 0:02:10]}  Nf5 {[%clk 0:02:28]} 22. Qf4 {[%clk 0:02:06]}  Be5 {[%clk 0:02:24]} 23. Qc1 {[%clk 0:02:06]}  Bg7 {[%clk 0:02:23]} 24. Ned4 {[%clk 0:02:00]}  Nd6 {[%clk 0:02:12]} 25. Rxe8+ {[%clk 0:01:56]}  Rxe8 {[%clk 0:02:13]} 26. Ne3 {[%clk 0:01:57]}  Ne4 {[%clk 0:02:10]} 27. Ndc2 {[%clk 0:01:54]}  Qe5 {[%clk 0:02:00]} 28. Nb4 {[%clk 0:01:54]}  Qf6 {[%clk 0:01:31]} 29. Qc2 {[%clk 0:01:48]}  d4 {[%clk 0:01:02]} 30. Ned5 {[%clk 0:01:30]}  Qf5 {[%clk 0:00:49]} 31. Nxb6 {[%clk 0:00:57]}  a5 {[%clk 0:00:44]} 32. Nd3 {[%clk 0:00:52]}  dxc3 {[%clk 0:00:41]} 33. bxc3 {[%clk 0:00:49]}  Nxc3 {[%clk 0:00:40]} 34. Bxb7 {[%clk 0:00:41]}  Nxd1 {[%clk 0:00:40]} 35. Qxd1 {[%clk 0:00:39]}  Rb8 {[%clk 0:00:32]} 36. Nc4 {[%clk 0:00:26]}  Rxb7 {[%clk 0:00:21]} 37. Nd6 {[%clk 0:00:26]}  Qd5 {[%clk 0:00:21]} 38. Nxb7 {[%clk 0:00:26]}  Qxb7 {[%clk 0:00:22]} 39. Qb3 {[%clk 0:00:27]}  Qe7 {[%clk 0:00:18]} 40. Qd5 {[%clk 0:00:20]}  Bc3 {[%clk 0:00:15]} 41. Kg2 {[%clk 0:00:20]}  Kg7 {[%clk 0:00:13]} 42. h4 {[%clk 0:00:20]}  Qf6 {[%clk 0:00:14]} 43. Qc4 {[%clk 0:00:18]}  Bd4 {[%clk 0:00:13]} 44. Qd5 {[%clk 0:00:15]}  a4 {[%clk 0:00:11]} 45. Qe4 {[%clk 0:00:15]}  a3 {[%clk 0:00:09]} 46. Qd5 {[%clk 0:00:14]}  Bb2 {[%clk 0:00:08]} 47. Qf3 {[%clk 0:00:13]}  Qa6 {[%clk 0:00:06]} 48. Qd5 {[%clk 0:00:12]}  Bf6 {[%clk 0:00:05]} 49. Qe4 {[%clk 0:00:11]}  Bb2 {[%clk 0:00:05]} 50. Qd5 {[%clk 0:00:11]}  Bf6 {[%clk 0:00:05]} 51. Nc5 {[%clk 0:00:10]}  Qb5 {[%clk 0:00:04]} 52. Kf3 {[%clk 0:00:07]}  Qb2 {[%clk 0:00:03]} 53. Ne4 {[%clk 0:00:07]}  Qe5 {[%clk 0:00:02]} 54. Qc6 {[%clk 0:00:04]}  Qd4 {[%clk 0:00:01]} 55. Kg2 {[%clk 0:00:05]}  Qe5 {[%clk 0:00:01]} 56. Qc4 {[%clk 0:00:03]}  Qd4 {[%clk 0:00:01]} 57. Qxd4 {[%clk 0:00:04]}  Bxd4 {[%clk 0:00:02]} 58. Kf3 {[%clk 0:00:04]}  Be5 {[%clk 0:00:03]} 59. Ke2 {[%clk 0:00:05]}  f5 {[%clk 0:00:03]} 60. Nc5 {[%clk 0:00:05]}  Kf6 {[%clk 0:00:04]} 61. Kd3 {[%clk 0:00:05]}  Bb2 {[%clk 0:00:05]} 62. f3 {[%clk 0:00:06]}  Be5 {[%clk 0:00:06]} 63. f4 {[%clk 0:00:05]}  Bd6 {[%clk 0:00:06]} 64. Na4 {[%clk 0:00:05]}  g5 {[%clk 0:00:05]} 65. hxg5+ {[%clk 0:00:04]}  hxg5 {[%clk 0:00:06]} 66. Ke3 {[%clk 0:00:04]}  gxf4+ {[%clk 0:00:06]} 67. gxf4 {[%clk 0:00:05]}  Ke6 {[%clk 0:00:07]} 68. Nc3 {[%clk 0:00:05]}  Bc5+ {[%clk 0:00:06]} 69. Kf3 {[%clk 0:00:05]}  Bd4 {[%clk 0:00:06]} 70. Nb5 {[%clk 0:00:06]}  Bb2 {[%clk 0:00:05]} 71. Ke2 {[%clk 0:00:04]}  Kd5 {[%clk 0:00:06]} 72. Kd3 {[%clk 0:00:05]}  Bc1 {[%clk 0:00:05]} 73. Nc3+ {[%clk 0:00:05]}  Kc5 {[%clk 0:00:04]} 74. Ne2 {[%clk 0:00:06]}  Bb2 {[%clk 0:00:04]} 75. Ng3 {[%clk 0:00:06]}  Bc1 {[%clk 0:00:03]} 76. Nxf5 {[%clk 0:00:06]}  Bxf4 {[%clk 0:00:03]} 77. Kc2 {[%clk 0:00:06]}  Be5 {[%clk 0:00:03]} 78. Kb3 {[%clk 0:00:06]}  Bb2 {[%clk 0:00:04]} 79. Ne3 {[%clk 0:00:06]}  Bc1 {[%clk 0:00:04]} 80. Nc2 {[%clk 0:00:07]}  Bb2 {[%clk 0:00:05]} 81. Ne1 {[%clk 0:00:07]}  Kb6 {[%clk 0:00:05]} 82. Nd3 {[%clk 0:00:08]}  Ka5 {[%clk 0:00:05]} 83. Kc4 {[%clk 0:00:08]}  Ka6 {[%clk 0:00:06]} 84. Nb4+ {[%clk 0:00:08]}  Ka7 {[%clk 0:00:06]} 85. Nd5 {[%clk 0:00:09]}  Ka6 {[%clk 0:00:06]} 86. Kc5 {[%clk 0:00:09]}  Ka5 {[%clk 0:00:05]} 87. Kc4 {[%clk 0:00:09]}  Ka4 {[%clk 0:00:06]} 88. Nb6+ {[%clk 0:00:08]}  Ka5 {[%clk 0:00:06]} 89. Nd7 {[%clk 0:00:09]}  Ka6 {[%clk 0:00:07]} 90. Nc5+ {[%clk 0:00:10]}  Ka5 {[%clk 0:00:07]} 91. Nd3 {[%clk 0:00:11]}  Ka6 {[%clk 0:00:07]} 92. Kb3 {[%clk 0:00:11]}  Ka7 {[%clk 0:00:08]} 93. Nb4 {[%clk 0:00:11]}  Kb6 {[%clk 0:00:07]} 94. Nc2 {[%clk 0:00:11]}  Ka5 {[%clk 0:00:08]} 95. Ne3 {[%clk 0:00:12]}  Ka6 {[%clk 0:00:08]} 96. Nc4 {[%clk 0:00:13]}  Kb5 {[%clk 0:00:08]} 97. Nd6+ {[%clk 0:00:12]}  Ka6 {[%clk 0:00:09]} 98. Nf5 {[%clk 0:00:13]}  Kb6 {[%clk 0:00:09]} 99. Kc4 {[%clk 0:00:14]}  Ka5 {[%clk 0:00:09]} 100. Ne7 {[%clk 0:00:14]}  Ka6 {[%clk 0:00:10]} 101. Nd5 {[%clk 0:00:15]}  Ka5 {[%clk 0:00:10]} 102. Kc5 {[%clk 0:00:16]}  Ka6 {[%clk 0:00:11]} 103. Nc7+ {[%clk 0:00:16]}  Ka5 {[%clk 0:00:11]} 104. Nb5 {[%clk 0:00:17]}  Ka6 {[%clk 0:00:12]} 105. Nd6 {[%clk 0:00:18]}  Ka5 {[%clk 0:00:12]} 106. Nc4+ {[%clk 0:00:19]}  Ka6 {[%clk 0:00:12]} 107. Kb4 {[%clk 0:00:20]}  Kb7 {[%clk 0:00:12]} 108. Kb5 {[%clk 0:00:20]}  Ka7 {[%clk 0:00:12]} 109. Na5 {[%clk 0:00:21]}  Kb8 {[%clk 0:00:12]} 110. Nc6+ {[%clk 0:00:22]}  Kb7 {[%clk 0:00:12]} 111. Nb4 {[%clk 0:00:23]}  Ka7 {[%clk 0:00:13]} 112. Nd3 {[%clk 0:00:23]}  Kb7 {[%clk 0:00:13]} 113. Ka4 {[%clk 0:00:24]}  Ka7 {[%clk 0:00:13]} 114. Kb4 {[%clk 0:00:25]}  Kb7 {[%clk 0:00:13]} 115. Nf4 {[%clk 0:00:26]}  Ka7 {[%clk 0:00:14]} 116. Nd5 {[%clk 0:00:27]}  Kb7 {[%clk 0:00:14]} 117. Kb5 {[%clk 0:00:27]}  Ka7 {[%clk 0:00:15]} 118. Ne7 {[%clk 0:00:27]}  Kb7 {[%clk 0:00:15]} 119. Nc6 {[%clk 0:00:28]}  Kc7 {[%clk 0:00:15]} 120. Nb4 {[%clk 0:00:28]}  Kb7 {[%clk 0:00:16]} 121. Nd3 {[%clk 0:00:29]}  Ka7 {[%clk 0:00:16]} 122. Ka4 {[%clk 0:00:29]}  Kb7 {[%clk 0:00:17]} 123. Nf4 {[%clk 0:00:29]}  Ka7 {[%clk 0:00:17]} 124. Nd5 {[%clk 0:00:30]}  Kb7 {[%clk 0:00:18]} 125. Nb4 {[%clk 0:00:31]}  Ka7 {[%clk 0:00:18]} 126. Nc2 {[%clk 0:00:32]}  Kb7 {[%clk 0:00:19]} 1/2-1/2


[Site "https://www.chess.com"]

[Event "Titled Tuesday Blitz April 11 Late 2023"]
[White "Lenaerts, Lennert"]
[Black "Cueto, Jonny"]
[WhiteFideId "211435"]
[BlackFideId "3300145"]
[WhiteElo "2334"]
[BlackElo "2234"]
[Result "1-0"]
[Round "01"]
[TimeControl "180+2"]
[Date "2023.04.11"]
[WhiteClock "0:00:00"]
[BlackClock "0:00:00"]

1. d4 {[%clk 0:00:01]}  e6 {[%clk 0:00:01]} 2. c4 {[%clk 0:00:01]}  Nf6 {[%clk 0:00:01]} 3. Nc3 {[%clk 0:00:01]}  Bb4 {[%clk 0:00:01]} 4. Qc2 {[%clk 0:00:01]}  c5 {[%clk 0:00:01]} 5. dxc5 {[%clk 0:00:01]}  Nc6 {[%clk 0:00:01]} 6. Nf3 {[%clk 0:00:01]}  O-O {[%clk 0:00:01]} 7. a3 {[%clk 0:00:01]}  Bxc5 {[%clk 0:00:01]} 8. b4 {[%clk 0:00:01]}  Bd6 {[%clk 0:00:01]} 9. Bb2 {[%clk 0:00:01]}  b6 {[%clk 0:00:01]} 10. O-O-O {[%clk 0:00:01]}  Be5 {[%clk 0:00:01]} 11. e3 {[%clk 0:00:01]}  Bb7 {[%clk 0:00:01]} 12. Nxe5 {[%clk 0:00:01]}  Nxe5 {[%clk 0:00:01]} 13. Nb5 {[%clk 0:00:01]}  Nc6 {[%clk 0:00:01]} 14. Nd6 {[%clk 0:00:01]}  Qc7 {[%clk 0:00:01]} 15. g4 {[%clk 0:00:01]}  Ne8 {[%clk 0:00:00]} 16. Nxb7 {[%clk 0:00:01]}  Qxb7 {[%clk 0:00:00]} 17. Bd3 {[%clk 0:00:01]}  h6 {[%clk 0:00:00]} 18. g5 {[%clk 0:00:01]}  h5 {[%clk 0:00:00]} 19. Be4 {[%clk 0:00:01]}  b5 {[%clk 0:00:00]} 20. Qe2 {[%clk 0:00:01]}  g6 {[%clk 0:00:00]} 21. cxb5 {[%clk 0:00:01]}  Nd6 {[%clk 0:00:00]} 22. Rxd6 {[%clk 0:00:01]}  Qc7 {[%clk 0:00:00]} 23. Rxc6 {[%clk 0:00:01]}  dxc6 {[%clk 0:00:00]} 24. Bxc6 {[%clk 0:00:01]}  Rac8 {[%clk 0:00:00]} 25. Qc4 {[%clk 0:00:01]}  a6 {[%clk 0:00:00]} 26. a4 {[%clk 0:00:01]}  axb5 {[%clk 0:00:00]} 27. axb5 {[%clk 0:00:01]}  Rfd8 {[%clk 0:00:00]} 28. Qc3 {[%clk 0:00:01]}  e5 {[%clk 0:00:00]} 29. Qxe5 {[%clk 0:00:01]}  Qxe5 {[%clk 0:00:00]} 30. Bxe5 {[%clk 0:00:01]}  Rd3 {[%clk 0:00:00]} 31. Rd1 {[%clk 0:00:01]}  Rb3 {[%clk 0:00:00]} 32. Bd6 {[%clk 0:00:01]}  Kg7 {[%clk 0:00:00]} 33. Kc2 {[%clk 0:00:01]}  Ra3 {[%clk 0:00:00]} 34. Bc5 {[%clk 0:00:01]}  Ra2+ {[%clk 0:00:00]} 35. Kb3 {[%clk 0:00:01]}  Rxf2 {[%clk 0:00:00]} 36. Rd7 {[%clk 0:00:01]}  Rxh2 {[%clk 0:00:00]} 37. Bd5 {[%clk 0:00:01]}  Rf2 {[%clk 0:00:00]} 38. b6 {[%clk 0:00:01]}  h4 {[%clk 0:00:00]} 39. b7 {[%clk 0:00:01]}  Re8 {[%clk 0:00:00]} 40. Bd6 {[%clk 0:00:01]}  h3 {[%clk 0:00:00]} 41. b8=Q {[%clk 0:00:00]}  Rxb8 {[%clk 0:00:00]} 42. Bxb8 {[%clk 0:00:01]}  h2 {[%clk 0:00:00]} 43. Bxh2 {[%clk 0:00:00]}  Rxh2 {[%clk 0:00:00]} 44. Rxf7+ {[%clk 0:00:00]}  Kh8 {[%clk 0:00:00]} 45. Rf6 {[%clk 0:00:00]}  Kh7 {[%clk 0:00:00]} 46. b5 {[%clk 0:00:00]}  Re2 {[%clk 0:00:00]} 47. Re6 {[%clk 0:00:00]}  Rg2 {[%clk 0:00:00]} 48. b6 {[%clk 0:00:00]}  Rxg5 {[%clk 0:00:00]} 49. b7 {[%clk 0:00:00]}  Rxd5 {[%clk 0:00:00]} 50. b8=Q {[%clk 0:00:00]} 1-0


[Site "https://www.chess.com"]

[Event "Titled Tuesday Blitz April 11 Late 2023"]
[White "Poltorak, Sebastian"]
[Black "Tarnowska, Aleksandra"]
[WhiteFideId "1199498"]
[BlackFideId "1180967"]
[WhiteElo "2195"]
[BlackElo "1776"]
[Result "1-0"]
[Round "01"]
[TimeControl "180+2"]
[Date "2023.04.11"]
[WhiteClock "0:00:00"]
[BlackClock "0:00:00"]

1. d4 {[%clk 0:00:01]}  d5 {[%clk 0:00:01]} 2. c4 {[%clk 0:00:01]}  e6 {[%clk 0:00:01]} 3. Nc3 {[%clk 0:00:01]}  Nf6 {[%clk 0:00:01]} 4. cxd5 {[%clk 0:00:01]}  exd5 {[%clk 0:00:01]} 5. Bg5 {[%clk 0:00:01]}  Be7 {[%clk 0:00:01]} 6. e3 {[%clk 0:00:01]}  h6 {[%clk 0:00:01]} 7. Bh4 {[%clk 0:00:01]}  O-O {[%clk 0:00:01]} 8. Bd3 {[%clk 0:00:01]}  c6 {[%clk 0:00:01]} 9. Nge2 {[%clk 0:00:01]}  Bg4 {[%clk 0:00:01]} 10. Qc2 {[%clk 0:00:01]}  Nbd7 {[%clk 0:00:01]} 11. h3 {[%clk 0:00:01]}  Bxe2 {[%clk 0:00:01]} 12. Nxe2 {[%clk 0:00:01]}  Ne4 {[%clk 0:00:01]} 13. Bxe7 {[%clk 0:00:01]}  Qxe7 {[%clk 0:00:01]} 14. Bxe4 {[%clk 0:00:01]}  dxe4 {[%clk 0:00:01]} 15. Nc3 {[%clk 0:00:01]}  Nf6 {[%clk 0:00:01]} 16. O-O-O {[%clk 0:00:01]}  a5 {[%clk 0:00:01]} 17. Kb1 {[%clk 0:00:01]}  b5 {[%clk 0:00:01]} 18. g4 {[%clk 0:00:01]}  a4 {[%clk 0:00:01]} 19. Rhg1 {[%clk 0:00:01]}  Nd5 {[%clk 0:00:01]} 20. Nxd5 {[%clk 0:00:00]}  cxd5 {[%clk 0:00:01]} 21. Qc6 {[%clk 0:00:00]}  Rfd8 {[%clk 0:00:01]} 22. Qxb5 {[%clk 0:00:00]}  a3 {[%clk 0:00:00]} 23. b3 {[%clk 0:00:00]}  Qf6 {[%clk 0:00:00]} 24. Qe2 {[%clk 0:00:00]}  Rab8 {[%clk 0:00:00]} 25. Rc1 {[%clk 0:00:00]}  Qh4 {[%clk 0:00:00]} 26. g5 {[%clk 0:00:00]}  hxg5 {[%clk 0:00:00]} 27. Rg4 {[%clk 0:00:00]}  Qxh3 {[%clk 0:00:00]} 28. Rxg5 {[%clk 0:00:00]}  Rbc8 {[%clk 0:00:00]} 29. Rcg1 {[%clk 0:00:00]}  g6 {[%clk 0:00:00]} 30. Qg4 {[%clk 0:00:00]}  Qxg4 {[%clk 0:00:00]} 31. R5xg4 {[%clk 0:00:00]}  Rc3 {[%clk 0:00:00]} 32. Rc1 {[%clk 0:00:00]}  Rdc8 {[%clk 0:00:00]} 33. Rxc3 {[%clk 0:00:00]}  Rxc3 {[%clk 0:00:00]} 34. Rg5 {[%clk 0:00:00]}  Rd3 {[%clk 0:00:00]} 35. Kc2 {[%clk 0:00:00]}  f6 {[%clk 0:00:00]} 36. Rxg6+ {[%clk 0:00:00]}  Kf7 {[%clk 0:00:00]} 37. Rh6 {[%clk 0:00:00]}  Ke7 {[%clk 0:00:00]} 38. Rh7+ {[%clk 0:00:00]}  Ke6 {[%clk 0:00:00]} 39. Rc7 {[%clk 0:00:00]}  Kf5 {[%clk 0:00:00]} 40. Rc3 {[%clk 0:00:00]}  Rxc3+ {[%clk 0:00:00]} 41. Kxc3 {[%clk 0:00:00]}  Kg4 {[%clk 0:00:00]} 42. Kd2 {[%clk 0:00:00]}  Kf3 {[%clk 0:00:00]} 43. Ke1 {[%clk 0:00:00]}  Kg4 {[%clk 0:00:00]} 44. b4 {[%clk 0:00:00]}  Kf5 {[%clk 0:00:00]} 45. Kd2 {[%clk 0:00:00]}  Ke6 {[%clk 0:00:00]} 46. Kc3 {[%clk 0:00:00]}  Kd6 {[%clk 0:00:00]} 47. Kb3 {[%clk 0:00:00]}  Kc6 {[%clk 0:00:00]} 48. Kxa3 {[%clk 0:00:00]}  Kb5 {[%clk 0:00:00]} 49. Kb3 {[%clk 0:00:00]}  Kb6 {[%clk 0:00:00]} 50. a4 {[%clk 0:00:00]}  Kb7 {[%clk 0:00:00]} 51. a5 {[%clk 0:00:00]}  Ka7 {[%clk 0:00:00]} 52. b5 {[%clk 0:00:00]}  f5 {[%clk 0:00:00]} 53. Kb4 {[%clk 0:00:00]}  f4 {[%clk 0:00:00]} 54. Kc5 {[%clk 0:00:00]}  fxe3 {[%clk 0:00:00]} 55. fxe3 {[%clk 0:00:00]}  Kb7 {[%clk 0:00:00]} 56. Kxd5 {[%clk 0:00:00]} 1-0


[Site "https://www.chess.com"]

[Event "Titled Tuesday Blitz April 11 Late 2023"]
[White "Urbina Perez, Juan Antonio"]
[Black "Sanchez, Robert"]
[WhiteFideId "2217368"]
[BlackFideId "2034360"]
[WhiteElo "2197"]
[BlackElo "1966"]
[Result "1-0"]
[Round "01"]
[TimeControl "180+2"]
[Date "2023.04.11"]
[WhiteClock "0:00:00"]
[BlackClock "0:00:00"]

1. c4 {[%clk 0:00:01]}  e6 {[%clk 0:00:01]} 2. g3 {[%clk 0:00:01]}  d5 {[%clk 0:00:01]} 3. Bg2 {[%clk 0:00:01]}  Be7 {[%clk 0:00:01]} 4. b3 {[%clk 0:00:01]}  Nf6 {[%clk 0:00:01]} 5. Bb2 {[%clk 0:00:01]}  O-O {[%clk 0:00:01]} 6. Nf3 {[%clk 0:00:01]}  c5 {[%clk 0:00:01]} 7. cxd5 {[%clk 0:00:01]}  exd5 {[%clk 0:00:01]} 8. d4 {[%clk 0:00:01]}  Nc6 {[%clk 0:00:01]} 9. O-O {[%clk 0:00:01]}  Be6 {[%clk 0:00:01]} 10. Nc3 {[%clk 0:00:01]}  Rc8 {[%clk 0:00:01]} 11. a3 {[%clk 0:00:01]}  h6 {[%clk 0:00:01]} 12. dxc5 {[%clk 0:00:01]}  Bxc5 {[%clk 0:00:01]} 13. b4 {[%clk 0:00:01]}  Be7 {[%clk 0:00:01]} 14. e3 {[%clk 0:00:01]}  Qd7 {[%clk 0:00:01]} 15. Ne2 {[%clk 0:00:01]}  Ne4 {[%clk 0:00:01]} 16. Rc1 {[%clk 0:00:01]}  Rfd8 {[%clk 0:00:01]} 17. Ned4 {[%clk 0:00:01]}  Bh3 {[%clk 0:00:01]} 18. Nxc6 {[%clk 0:00:01]}  bxc6 {[%clk 0:00:01]} 19. Nd4 {[%clk 0:00:01]}  Bxg2 {[%clk 0:00:01]} 20. Kxg2 {[%clk 0:00:01]}  c5 {[%clk 0:00:01]} 21. bxc5 {[%clk 0:00:01]}  Bxc5 {[%clk 0:00:01]} 22. Re1 {[%clk 0:00:01]}  Bf8 {[%clk 0:00:01]} 23. Qf3 {[%clk 0:00:01]}  Nd2 {[%clk 0:00:01]} 24. Qe2 {[%clk 0:00:01]}  Nc4 {[%clk 0:00:01]} 25. Red1 {[%clk 0:00:01]}  Rb8 {[%clk 0:00:01]} 26. Ba1 {[%clk 0:00:01]}  Bxa3 {[%clk 0:00:01]} 27. Rc2 {[%clk 0:00:00]}  Bf8 {[%clk 0:00:00]} 28. Nf3 {[%clk 0:00:00]}  Qe6 {[%clk 0:00:00]} 29. Qd3 {[%clk 0:00:00]}  a5 {[%clk 0:00:00]} 30. Nd4 {[%clk 0:00:00]}  Qd7 {[%clk 0:00:00]} 31. Nf3 {[%clk 0:00:00]}  Qe6 {[%clk 0:00:00]} 32. Qd4 {[%clk 0:00:00]}  Qg6 {[%clk 0:00:00]} 33. Ra2 {[%clk 0:00:00]}  Qe4 {[%clk 0:00:00]} 34. Bc3 {[%clk 0:00:00]}  Ra8 {[%clk 0:00:00]} 35. Ra4 {[%clk 0:00:00]}  Qg6 {[%clk 0:00:00]} 36. Ne5 {[%clk 0:00:00]}  Nxe5 {[%clk 0:00:00]} 37. Qxe5 {[%clk 0:00:00]}  Re8 {[%clk 0:00:00]} 38. Qxd5 {[%clk 0:00:00]}  Rad8 {[%clk 0:00:00]} 39. Qxd8 {[%clk 0:00:00]}  Rxd8 {[%clk 0:00:00]} 40. Rxd8 {[%clk 0:00:00]}  Qc6+ {[%clk 0:00:00]} 41. e4 {[%clk 0:00:00]}  Qxa4 {[%clk 0:00:00]} 42. Be5 {[%clk 0:00:00]}  Qxe4+ {[%clk 0:00:00]} 1-0


[Site "https://www.chess.com"]

[Event "Titled Tuesday Blitz April 11 Late 2023"]
[White "Eisa Mohmood, Alkhoori"]
[Black "Grot, Blazej"]
[WhiteFideId "9316116"]
[BlackFideId "21835845"]
[WhiteElo "1310"]
[BlackElo "1823"]
[Result "1-0"]
[Round "01"]
[TimeControl "180+2"]
[Date "2023.04.11"]
[WhiteClock "0:00:07"]
[BlackClock "0:00:03"]

1. e4 {[%clk 0:02:35]}  e5 {[%clk 0:02:53]} 2. Nf3 {[%clk 0:02:36]}  Nc6 {[%clk 0:02:36]} 3. Bb5 {[%clk 0:02:36]}  a6 {[%clk 0:02:34]} 4. Ba4 {[%clk 0:02:37]}  d6 {[%clk 0:02:30]} 5. O-O {[%clk 0:02:36]}  Bd7 {[%clk 0:02:26]} 6. c3 {[%clk 0:02:36]}  g6 {[%clk 0:02:25]} 7. d4 {[%clk 0:02:36]}  Bg7 {[%clk 0:02:25]} 8. Re1 {[%clk 0:02:36]}  h6 {[%clk 0:02:22]} 9. d5 {[%clk 0:02:36]}  Nce7 {[%clk 0:02:17]} 10. Bxd7+ {[%clk 0:02:37]}  Qxd7 {[%clk 0:02:17]} 11. c4 {[%clk 0:02:38]}  Nf6 {[%clk 0:02:16]} 12. Nc3 {[%clk 0:02:39]}  O-O {[%clk 0:02:16]} 13. Be3 {[%clk 0:02:34]}  Nh5 {[%clk 0:02:11]} 14. Qd2 {[%clk 0:02:33]}  Kh7 {[%clk 0:02:10]} 15. c5 {[%clk 0:02:34]}  f5 {[%clk 0:02:10]} 16. cxd6 {[%clk 0:02:34]}  cxd6 {[%clk 0:02:06]} 17. exf5 {[%clk 0:02:26]}  gxf5 {[%clk 0:01:37]} 18. Rac1 {[%clk 0:02:26]}  f4 {[%clk 0:01:36]} 19. Bb6 {[%clk 0:02:26]}  Rac8 {[%clk 0:00:59]} 20. Ne4 {[%clk 0:02:21]}  Qb5 {[%clk 0:00:52]} 21. Bc7 {[%clk 0:02:05]}  Qxd5 {[%clk 0:00:48]} 22. Bxd6 {[%clk 0:01:59]}  Qxd2 {[%clk 0:00:42]} 23. Nfxd2 {[%clk 0:01:56]}  Rxc1 {[%clk 0:00:40]} 24. Rxc1 {[%clk 0:01:56]}  Rc8 {[%clk 0:00:33]} 25. Rxc8 {[%clk 0:01:18]}  Nxc8 {[%clk 0:00:34]} 26. Bc7 {[%clk 0:01:16]}  Kg6 {[%clk 0:00:29]} 27. Nc4 {[%clk 0:01:15]}  Kf5 {[%clk 0:00:28]} 28. Ned6+ {[%clk 0:01:14]}  Nxd6 {[%clk 0:00:25]} 29. Nxd6+ {[%clk 0:01:15]}  Ke6 {[%clk 0:00:26]} 30. Nxb7 {[%clk 0:01:15]}  Kd7 {[%clk 0:00:21]} 31. Ba5 {[%clk 0:01:13]}  Kc6 {[%clk 0:00:15]} 32. Nd8+ {[%clk 0:01:13]}  Kd7 {[%clk 0:00:13]} 33. Nb7 {[%clk 0:01:09]}  Kc6 {[%clk 0:00:13]} 34. Nd8+ {[%clk 0:01:09]}  Kd7 {[%clk 0:00:13]} 35. b4 {[%clk 0:00:59]}  e4 {[%clk 0:00:07]} 36. Nb7 {[%clk 0:00:55]}  Kc6 {[%clk 0:00:06]} 37. Nc5 {[%clk 0:00:54]}  e3 {[%clk 0:00:06]} 38. fxe3 {[%clk 0:00:54]}  fxe3 {[%clk 0:00:07]} 39. g3 {[%clk 0:00:50]}  Bd4 {[%clk 0:00:04]} 40. Kf1 {[%clk 0:00:40]}  Nf6 {[%clk 0:00:03]} 41. Ne6 {[%clk 0:00:36]}  Ba7 {[%clk 0:00:02]} 42. Bd8 {[%clk 0:00:35]}  Ng4 {[%clk 0:00:02]} 43. h3 {[%clk 0:00:33]}  Ne5 {[%clk 0:00:02]} 44. Bf6 {[%clk 0:00:27]}  Nd3 {[%clk 0:00:02]} 45. Bc3 {[%clk 0:00:24]}  Kd5 {[%clk 0:00:02]} 46. Nf4+ {[%clk 0:00:20]}  Kc4 {[%clk 0:00:02]} 47. Nxd3 {[%clk 0:00:16]}  Kxd3 {[%clk 0:00:02]} 48. Be1 {[%clk 0:00:15]}  e2+ {[%clk 0:00:03]} 49. Kg2 {[%clk 0:00:16]}  Kc2 {[%clk 0:00:03]} 50. g4 {[%clk 0:00:07]}  Kd1 {[%clk 0:00:04]} 51. Bg3 {[%clk 0:00:07]}  Bb8 {[%clk 0:00:04]} 52. Bf2 {[%clk 0:00:06]}  Ba7 {[%clk 0:00:04]} 53. Bh4 {[%clk 0:00:06]}  Be3 {[%clk 0:00:04]} 54. a4 {[%clk 0:00:04]}  Bd2 {[%clk 0:00:02]} 55. b5 {[%clk 0:00:05]}  axb5 {[%clk 0:00:03]} 56. axb5 {[%clk 0:00:06]}  e1=Q {[%clk 0:00:03]} 57. Bxe1 {[%clk 0:00:05]}  Kxe1 {[%clk 0:00:03]} 58. b6 {[%clk 0:00:06]}  Bf4 {[%clk 0:00:04]} 59. h4 {[%clk 0:00:06]}  Ke2 {[%clk 0:00:03]} 60. b7 {[%clk 0:00:05]}  Ke3 {[%clk 0:00:04]} 61. g5 {[%clk 0:00:06]}  hxg5 {[%clk 0:00:03]} 62. hxg5 {[%clk 0:00:07]}  Ke4 {[%clk 0:00:02]} 63. g6 {[%clk 0:00:08]}  Kd5 {[%clk 0:00:02]} 64. g7 {[%clk 0:00:08]}  Kc6 {[%clk 0:00:01]} 65. b8=Q {[%clk 0:00:06]}  Bc7 {[%clk 0:00:02]} 66. Qc8 {[%clk 0:00:05]}  Kb6 {[%clk 0:00:02]} 67. g8=R {[%clk 0:00:05]}  Bd6 {[%clk 0:00:03]} 68. Rg6 {[%clk 0:00:06]}  Kb5 {[%clk 0:00:03]} 69. Rxd6 {[%clk 0:00:05]}  Kb4 {[%clk 0:00:04]} 70. Rb6+ {[%clk 0:00:06]}  Ka5 {[%clk 0:00:03]} 71. Qa6# {[%clk 0:00:07]} 1-0


[Site "https://www.chess.com"]

[Event "Titled Tuesday Blitz April 11 Late 2023"]
[White "Nakamura, Hikaru"]
[Black "Idani, Pouya"]
[WhiteFideId "2016192"]
[BlackFideId "12510130"]
[WhiteElo "2885"]
[BlackElo "2574"]
[Result "1-0"]
[Round "02"]
[TimeControl "180+2"]
[Date "2023.04.11"]
[WhiteClock "0:02:38"]
[BlackClock "0:00:54"]

1. Nf3 {[%clk 0:03:00]}  Nf6 {[%clk 0:02:57]} 2. b3 {[%clk 0:02:58]}  g6 {[%clk 0:02:55]} 3. d4 {[%clk 0:02:58]}  Bg7 {[%clk 0:02:53]} 4. Bb2 {[%clk 0:02:58]}  O-O {[%clk 0:02:52]} 5. e3 {[%clk 0:02:58]}  d6 {[%clk 0:02:52]} 6. Be2 {[%clk 0:02:59]}  Nbd7 {[%clk 0:02:53]} 7. O-O {[%clk 0:02:59]}  e5 {[%clk 0:02:53]} 8. dxe5 {[%clk 0:02:59]}  Ng4 {[%clk 0:02:54]} 9. c4 {[%clk 0:03:00]}  Ngxe5 {[%clk 0:02:53]} 10. Nc3 {[%clk 0:03:00]}  Nxf3+ {[%clk 0:02:34]} 11. Bxf3 {[%clk 0:03:00]}  a5 {[%clk 0:02:29]} 12. Qd2 {[%clk 0:02:58]}  Ne5 {[%clk 0:02:03]} 13. Be2 {[%clk 0:02:58]}  Be6 {[%clk 0:02:03]} 14. Rfd1 {[%clk 0:02:55]}  Qh4 {[%clk 0:01:57]} 15. Rac1 {[%clk 0:02:49]}  Ng4 {[%clk 0:01:26]} 16. Bxg4 {[%clk 0:02:48]}  Bxg4 {[%clk 0:01:27]} 17. Re1 {[%clk 0:02:46]}  Rfd8 {[%clk 0:01:05]} 18. Nd5 {[%clk 0:02:44]}  c6 {[%clk 0:01:00]} 19. Bxg7 {[%clk 0:02:42]}  Kxg7 {[%clk 0:01:00]} 20. Qd4+ {[%clk 0:02:38]}  f6 {[%clk 0:00:54]} 21. Nc7 {[%clk 0:02:38]} 1-0


[Site "https://www.chess.com"]